fUSD/lending_fUSD_20260528
["ID","MTS","AMOUNT","RATE_DAILY","PERIOD"]
[423193219,1779917443000,-300.99795142,0.00035428,2]
[423193225,1779917443000,-1263.96825586,0.00035428,2]
[423193227,1779917443000,-527.62572404,0.00035428,2]
[423193238,1779917443000,-1634.44392223,0.00035428,2]
[423193237,1779917443000,-300.0,0.00035428,2]
[423193229,1779917443000,-300.0,0.00035428,2]
[423193232,1779917443000,-1800.09388364,0.00035428,2]
[423193216,1779917443000,-300.0,0.00035428,2]
[423193230,1779917443000,-300.0,0.00035428,2]
[423193228,1779917443000,-300.0,0.00035428,2]
[423193231,1779917443000,-950.32029804,0.00035428,2]
[423193233,1779917443000,-300.0,0.00035428,2]
[423193236,1779917443000,-300.0,0.00035428,2]
[423193235,1779917443000,-310.02493426,0.00035428,2]
[423193239,1779917443000,-300.0,0.00035428,2]
[423193240,1779917443000,-300.0,0.00035428,2]
[423193242,1779917443000,-594.79850986,0.00035428,2]
[423193243,1779917443000,-300.0,0.00035428,2]
[423193244,1779917443000,-300.0,0.00035428,2]
[423193246,1779917443000,-300.0,0.00035428,2]
[423193245,1779917443000,-464.48677942,0.00035428,2]
[423193176,1779917443000,-300.0,0.00035428,2]
[423193234,1779917443000,-1148.83589152,0.00035428,2]
[423193218,1779917443000,-300.0,0.00035428,2]
[423193241,1779917443000,-300.0,0.00035428,2]
[423193226,1779917443000,-300.0,0.00035428,2]
[423193217,1779917443000,-302.21937029,0.00035428,2]
[423193180,1779917443000,-300.0,0.00035428,2]
[423193188,1779917443000,-300.0,0.00035428,2]
[423193187,1779917443000,-300.0,0.00035428,2]
[423193200,1779917443000,-300.0,0.00035428,2]
[423193192,1779917443000,-300.0,0.00035428,2]
[423193194,1779917443000,-300.0,0.00035428,2]
[423193193,1779917443000,-300.0,0.00035428,2]
[423193189,1779917443000,-300.0,0.00035428,2]
[423193190,1779917443000,-300.0,0.00035428,2]
[423193199,1779917443000,-300.0,0.00035428,2]
[423193197,1779917443000,-300.0,0.00035428,2]
[423193195,1779917443000,-300.0,0.00035428,2]
[423193198,1779917443000,-300.0,0.00035428,2]
[423193191,1779917443000,-484.76763572,0.00035428,2]
[423193201,1779917443000,-300.0,0.00035428,2]
[423193196,1779917443000,-1096.2926835,0.00035428,2]
[423193208,1779917443000,-300.0,0.00035428,2]
[423193209,1779917443000,-300.0,0.00035428,2]
[423193214,1779917443000,-313.66497829,0.00035428,2]
[423193212,1779917443000,-1068.40163352,0.00035428,2]
[423193204,1779917443000,-300.0,0.00035428,2]
[423193213,1779917443000,-534.65434383,0.00035428,2]
[423193207,1779917443000,-300.0,0.00035428,2]
[423193211,1779917443000,-528.48327171,0.00035428,2]
[423193206,1779917443000,-300.0,0.00035428,2]
[423193210,1779917443000,-300.0,0.00035428,2]
[423193203,1779917443000,-300.0,0.00035428,2]
[423193205,1779917443000,-300.0,0.00035428,2]
[423193202,1779917443000,-300.0,0.00035428,2]
[423193272,1779917444000,-300.0,0.00035428,2]
[423193274,1779917444000,-493.38669858,0.00035428,2]
[423193276,1779917444000,-300.0,0.00035428,2]
[423193278,1779917444000,-300.0,0.00035428,2]
[423193286,1779917444000,-534.65434383,0.00035428,2]
[423193281,1779917444000,-300.0,0.00035428,2]
[423193279,1779917444000,-605.31118564,0.00035428,2]
[423193277,1779917444000,-300.0,0.00035428,2]
[423193271,1779917444000,-300.0,0.00035428,2]
[423193280,1779917444000,-300.0,0.00035428,2]
[423193298,1779917444000,-302.21937029,0.00035428,2]
[423193283,1779917444000,-300.0,0.00035428,2]
[423193284,1779917444000,-528.48327171,0.00035428,2]
[423193282,1779917444000,-300.0,0.00035428,2]
[423193300,1779917444000,-300.0,0.00035428,2]
[423193295,1779917444000,-727.07827244,0.00035428,2]
[423193302,1779917444000,-300.0,0.00035428,2]
[423193297,1779917444000,-300.0,0.00035428,2]
[423193301,1779917444000,-300.99795142,0.00035428,2]
[423193270,1779917444000,-300.0,0.00035428,2]
[423193299,1779917444000,-300.0,0.00035428,2]
[423193285,1779917444000,-1068.40163352,0.00035428,2]
[423193273,1779917444000,-300.0,0.00035428,2]
[423193254,1779917444000,-300.0,0.00035428,2]
[423193268,1779917444000,-300.0,0.00035428,2]
[423193293,1779917444000,-300.0,0.00035428,2]
[423193250,1779917444000,-300.0,0.00035428,2]
[423193247,1779917444000,-578.28315025,0.00035428,2]
[423193249,1779917444000,-452.52893397,0.00035428,2]
[423193248,1779917444000,-300.0,0.00035428,2]
[423193251,1779917444000,-300.0,0.00035428,2]
[423193252,1779917444000,-300.0,0.00035428,2]
[423193262,1779917444000,-300.0,0.00035428,2]
[423193253,1779917444000,-300.0,0.00035428,2]
[423193255,1779917444000,-484.76763572,0.00035428,2]
[423193269,1779917444000,-449.17313882,0.00035428,2]
[423193257,1779917444000,-300.0,0.00035428,2]
[423193258,1779917444000,-300.0,0.00035428,2]
[423193261,1779917444000,-1096.2926835,0.00035428,2]
[423193259,1779917444000,-300.0,0.00035428,2]
[423193260,1779917444000,-300.00000001,0.00035428,2]
[423193263,1779917444000,-300.0,0.00035428,2]
[423193265,1779917444000,-300.0,0.00035428,2]
[423193264,1779917444000,-300.0,0.00035428,2]
[423193266,1779917444000,-300.0,0.00035428,2]
[423193275,1779917444000,-300.12808339,0.00035428,2]
[423193267,1779917444000,-300.0,0.00035428,2]
[423193256,1779917444000,-310.28230408,0.00035428,2]
[423193304,1779917444000,-300.0,0.00035428,2]
[423193305,1779917444000,-300.0,0.00035428,2]
[423193307,1779917444000,-1263.96825586,0.00035428,2]
[423193336,1779917444000,-687.05630811,0.00035472,2]
[423193334,1779917444000,-300.0,0.00035428,2]
[423193335,1779917444000,-300.0,0.00035428,2]
[423193331,1779917444000,-578.28315025,0.00035428,2]
[423193333,1779917444000,-452.52893397,0.00035428,2]
[423193339,1779917444000,-150.0,0.00035654,7]
[423193337,1779917444000,-163.2,0.00035616,60]
[423193343,1779917444000,-152.0,0.00035684,30]
[423193340,1779917444000,-154.0,0.00035684,30]
[423193345,1779917444000,-158.00087319,0.00035685,30]
[423193329,1779917444000,-464.48677942,0.00035428,2]
[423193346,1779917444000,-198.0,0.00035685,30]
[423193338,1779917444000,-281.31,0.00035616,2]
[423193344,1779917444000,-213.0,0.00035684,30]
[423193347,1779917444000,-151.0,0.00035685,30]
[423193348,1779917444000,-155.0,0.00035685,30]
[423193351,1779917444000,-150.0,0.00035766,7]
[423193350,1779917444000,-175.88,0.00035701,2]
[423193349,1779917444000,-446.0,0.00035685,30]
[423193353,1779917444000,-2780.0119,0.00035837,2]
[423193352,1779917444000,-150.0,0.00035781,2]
[423193303,1779917444000,-300.0,0.00035428,2]
[423193341,1779917444000,-225.0,0.00035684,30]
[423193332,1779917444000,-300.0,0.00035428,2]
[423193342,1779917444000,-159.0,0.00035684,30]
[423193330,1779917444000,-300.0,0.00035428,2]
[423193311,1779917444000,-300.0,0.00035428,2]
[423193327,1779917444000,-300.0,0.00035428,2]
[423193314,1779917444000,-300.0,0.00035428,2]
[423193312,1779917444000,-300.0,0.00035428,2]
[423193309,1779917444000,-527.62572404,0.00035428,2]
[423193310,1779917444000,-300.0,0.00035428,2]
[423193313,1779917444000,-865.6208675,0.00035428,2]
[423193306,1779917444000,-300.0,0.00035428,2]
[423193320,1779917444000,-300.0,0.00035428,2]
[423193322,1779917444000,-1634.44392223,0.00035428,2]
[423193321,1779917444000,-300.0,0.00035428,2]
[423193308,1779917444000,-300.0,0.00035428,2]
[423193324,1779917444000,-300.0,0.00035428,2]
[423193319,1779917444000,-310.02493426,0.00035428,2]
[423193323,1779917444000,-378.27714322,0.00035428,2]
[423193325,1779917444000,-300.0,0.00035428,2]
[423193315,1779917444000,-950.32029804,0.00035428,2]
[423193316,1779917444000,-1800.09388364,0.00035428,2]
[423193318,1779917444000,-1148.83589152,0.00035428,2]
[423193317,1779917444000,-300.0,0.00035428,2]
[423193326,1779917444000,-594.79850986,0.00035428,2]
[423193328,1779917444000,-379.16442969,0.00035428,2]
[423193396,1779917445000,-151.0,0.00036491,7]
[423193394,1779917445000,-1544.0,0.00036491,7]
[423193388,1779917445000,-1544.0,0.00036491,7]
[423193393,1779917445000,-1544.0,0.00036491,7]
[423193390,1779917445000,-1544.0,0.00036491,7]
[423193385,1779917445000,-2780.0119,0.00036477,2]
[423193387,1779917445000,-1544.0,0.00036491,7]
[423193379,1779917445000,-150.0,0.00036392,7]
[423193386,1779917445000,-150.0,0.00036481,7]
[423193395,1779917445000,-881.93281491,0.00036491,7]
[423193389,1779917445000,-1544.0,0.00036491,7]
[423193391,1779917445000,-1544.0,0.00036491,7]
[423193409,1779917445000,-2780.0119,0.00036861,2]
[423193398,1779917445000,-214.96862186,0.00036491,7]
[423193400,1779917445000,-253.38749672,0.00036491,7]
[423193397,1779917445000,-151.0,0.00036491,7]
[423193401,1779917445000,-2780.0119,0.00036605,2]
[423193399,1779917445000,-152.0,0.00036491,7]
[423193403,1779917445000,-150.0,0.0003672,7]
[423193402,1779917445000,-150.0,0.00036638,7]
[423193406,1779917445000,-2000.0,0.000368,7]
[423193407,1779917445000,-270.0,0.00036819,30]
[423193408,1779917445000,-150.0,0.00036839,7]
[423193381,1779917445000,-500.0,0.00036399,2]
[423193392,1779917445000,-1544.0,0.00036491,7]
[423193382,1779917445000,-603.64,0.00036399,2]
[423193356,1779917445000,-150.0,0.00035951,2]
[423193384,1779917445000,-181.83,0.00036475,30]
[423193405,1779917445000,-416.9316,0.00036733,2]
[423193358,1779917445000,-2780.0119,0.00035965,2]
[423193354,1779917445000,-416.9316,0.00035837,2]
[423193357,1779917445000,-150.0,0.00035951,2]
[423193359,1779917445000,-194.09606381,0.00036,120]
[423193355,1779917445000,-150.0,0.000359,7]
[423193360,1779917445000,-2833.23983054,0.00036,2]
[423193371,1779917445000,-150.0,0.00036195,30]
[423193364,1779917445000,-644.79446245,0.00036137,2]
[423193365,1779917445000,-804.17102365,0.00036137,2]
[423193361,1779917445000,-500.0,0.00036069,120]
[423193368,1779917445000,-1272.0,0.00036165,2]
[423193380,1779917445000,-151.0,0.00036397,14]
[423193362,1779917445000,-2780.0119,0.00036093,2]
[423193366,1779917445000,-150.0,0.00036146,7]
[423193367,1779917445000,-574.6,0.00036153,30]
[423193363,1779917445000,-150.0,0.00036124,7]
[423193369,1779917445000,-525.0,0.00036165,2]
[423193372,1779917445000,-2780.0119,0.00036221,2]
[423193374,1779917445000,-178.0,0.000363,30]
[423193376,1779917445000,-928.0,0.00036383,2]
[423193377,1779917445000,-505.0,0.00036389,13]
[423193378,1779917445000,-239.19758938,0.00036391,2]
[423193383,1779917445000,-92205.0,0.000364,30]
[423193375,1779917445000,-2780.0119,0.00036349,2]
[423193373,1779917445000,-22630.87504843,0.00036288,2]
[423193370,1779917445000,-1225.0,0.00036165,2]
[423193411,1779917445000,-157.89931684,0.00036892,3]
[423193404,1779917445000,-2780.0119,0.00036733,2]
[423193413,1779917445000,-1502.55671795,0.00036934,46]
[423193443,1779917445000,-620.4,0.000376,30]
[423193445,1779917445000,-252.34828737,0.0002404,2]
[423193446,1779917445000,-150.0,0.00027521,2]
[423193451,1779917445000,-150.0,0.00037621,7]
[423193448,1779917445000,-300.52013628,0.00035428,2]
[423193449,1779917445000,-1929.38157635,0.000376,30]
[423193447,1779917445000,-300.0,0.00035428,2]
[423193450,1779917445000,-3712.63900639,0.000376,30]
[423193444,1779917445000,-154.0,0.00017615,2]
[423193453,1779917445000,-416.9318,0.00037629,2]
[423193452,1779917445000,-2780.0125,0.00037629,2]
[423193455,1779917445000,-600.0,0.00037728,60]
[423193459,1779917445000,-104.53405573,0.00037781,2]
[423193462,1779917445000,-150.0,0.00037912,7]
[423193457,1779917445000,-150.0,0.00037769,30]
[423193458,1779917445000,-395.46594427,0.00037781,2]
[423193461,1779917445000,-205.93734224,0.0003788,2]
[423193456,1779917445000,-500.0,0.00037728,60]
[423193460,1779917445000,-150.0,0.00037867,7]
[423193464,1779917445000,-250.0,0.00038,2]
[423193467,1779917445000,-250.0,0.00038,2]
[423193465,1779917445000,-250.0,0.00038,2]
[423193463,1779917445000,-157.89931684,0.00037988,3]
[423193466,1779917445000,-250.0,0.00038,2]
[423193410,1779917445000,-150.0,0.00036884,7]
[423193442,1779917445000,-1191.8566457,0.000376,30]
[423193440,1779917445000,-3448.25219006,0.000376,30]
[423193454,1779917445000,-157.89931684,0.00037714,3]
[423193436,1779917445000,-350.0,0.00037514,2]
[423193419,1779917445000,-2000.0,0.000371,7]
[423193441,1779917445000,-654.87971684,0.000376,30]
[423193414,1779917445000,-1552.17328205,0.00036934,46]
[423193416,1779917445000,-150.0,0.00036982,30]
[423193415,1779917445000,-154.922,0.00036934,46]
[423193412,1779917445000,-248.54033598,0.00036899,3]
[423193420,1779917445000,-2780.0119,0.00037117,2]
[423193417,1779917445000,-2780.0119,0.00036989,2]
[423193423,1779917445000,-150.0,0.00037197,7]
[423193421,1779917445000,-150.0,0.00037129,7]
[423193433,1779917445000,-1400.0,0.00037454,60]
[423193425,1779917445000,-209.09037182,0.000373,30]
[423193422,1779917445000,-157.89931684,0.00037166,3]
[423193418,1779917445000,-215.46156935,0.00037,7]
[423193439,1779917445000,-32637.395948,0.000376,30]
[423193438,1779917445000,-48010.19491666,0.000376,30]
[423193424,1779917445000,-2780.0119,0.00037245,2]
[423193437,1779917445000,-150.0,0.00037554,7]
[423193434,1779917445000,-3958.804059,0.00037477,2]
[423193435,1779917445000,-2780.0119,0.00037501,2]
[423193429,1779917445000,-158.57,0.00037434,13]
[423193428,1779917445000,-150.0,0.00037375,7]
[423193427,1779917445000,-2780.0119,0.00037373,2]
[423193426,1779917445000,-209.09037182,0.000373,30]
[423193430,1779917445000,-158.58,0.00037434,13]
[423193432,1779917445000,-150.0,0.00037449,2]
[423193431,1779917445000,-157.89931684,0.0003744,3]
[423193502,1779917446000,-330.0,0.00038331,50]
[423193505,1779917446000,-211.016958,0.00038356,30]
[423193504,1779917446000,-211.016958,0.00038356,30]
[423193503,1779917446000,-1638.75,0.00038356,2]
[423193498,1779917446000,-875.33344937,0.00038276,60]
[423193506,1779917446000,-211.016958,0.00038356,30]
[423193500,1779917446000,-1771.5,0.00038284,120]
[423193509,1779917446000,-211.016958,0.00038356,30]
[423193501,1779917446000,-1589.0,0.00038298,11]
[423193507,1779917446000,-151.0,0.00038356,30]
[423193511,1779917446000,-211.016958,0.00038356,30]
[423193510,1779917446000,-151.0,0.00038356,30]
[423193515,1779917446000,-211.016958,0.00038356,30]
[423193525,1779917446000,-211.016958,0.00038356,30]
[423193516,1779917446000,-211.016958,0.00038356,30]
[423193517,1779917446000,-211.016958,0.00038356,30]
[423193514,1779917446000,-211.016958,0.00038356,30]
[423193519,1779917446000,-211.016958,0.00038356,30]
[423193520,1779917446000,-211.016958,0.00038356,30]
[423193524,1779917446000,-211.016958,0.00038356,30]
[423193523,1779917446000,-211.016958,0.00038356,30]
[423193512,1779917446000,-276.86,0.00038356,30]
[423193522,1779917446000,-211.016958,0.00038356,30]
[423193518,1779917446000,-211.016958,0.00038356,30]
[423193521,1779917446000,-211.016958,0.00038356,30]
[423193499,1779917446000,-1400.0,0.00038276,60]
[423193513,1779917446000,-211.016958,0.00038356,30]
[423193497,1779917446000,-17184.961377,0.00038276,60]
[423193471,1779917446000,-216.97643336,0.00038,2]
[423193493,1779917446000,-603.64,0.00038275,2]
[423193474,1779917446000,-150.0,0.00038031,7]
[423193526,1779917446000,-211.016958,0.00038356,30]
[423193470,1779917446000,-695.0,0.00038,2]
[423193469,1779917446000,-251.03060051,0.00038,2]
[423193468,1779917446000,-250.0,0.00038,2]
[423193473,1779917446000,-178.0,0.0003802,60]
[423193472,1779917446000,-505.0,0.00038004,15]
[423193480,1779917446000,-150.0,0.00038138,2]
[423193484,1779917446000,-337.34272743,0.00038169,2]
[423193481,1779917446000,-151.16607844,0.00038143,2]
[423193482,1779917446000,-239.19758938,0.00038146,2]
[423193485,1779917446000,-151.0,0.00038188,14]
[423193483,1779917446000,-1118.71727257,0.00038169,2]
[423193476,1779917446000,-375.44368655,0.00038055,120]
[423193475,1779917446000,-173.71641911,0.00038055,120]
[423193477,1779917446000,-2000.0,0.000381,7]
[423193478,1779917446000,-150.0,0.00038113,7]
[423193479,1779917446000,-574.6,0.00038125,30]
[423193487,1779917446000,-767.97837075,0.00038191,2]
[423193488,1779917446000,-350.0,0.00038214,2]
[423193486,1779917446000,-8455.44113719,0.00038191,2]
[423193489,1779917446000,-1589.0,0.00038231,11]
[423193491,1779917446000,-157.89931684,0.00038262,3]
[423193492,1779917446000,-150.0,0.00038269,7]
[423193490,1779917446000,-1589.0,0.00038231,11]
[423193494,1779917446000,-844.75,0.00038276,60]
[423193495,1779917446000,-3025.28097393,0.00038276,60]
[423193496,1779917446000,-3549.4941997,0.00038276,60]
[423193536,1779917446000,-151.0,0.00038356,30]
[423193534,1779917446000,-151.0,0.00038356,30]
[423193531,1779917446000,-151.0,0.00038356,30]
[423193556,1779917446000,-261.701458,0.00038356,30]
[423193564,1779917446000,-151.0,0.000325,2]
[423193573,1779917446000,-282.44094275,0.0003855,60]
[423193563,1779917446000,-150.0,0.00028897,2]
[423193572,1779917446000,-157.89931684,0.00038536,3]
[423193567,1779917446000,-250.0,0.000384,2]
[423193566,1779917446000,-250.0,0.000384,2]
[423193569,1779917446000,-130.83125301,0.000384,2]
[423193565,1779917446000,-105.32406225,0.000384,2]
[423193571,1779917446000,-250.0,0.000384,2]
[423193568,1779917446000,-119.16874699,0.000384,2]
[423193570,1779917446000,-250.0,0.000384,2]
[423193557,1779917446000,-1549.0,0.00038356,30]
[423193575,1779917446000,-150.0,0.00030341,2]
[423193582,1779917446000,-231.41,0.000386,2]
[423193583,1779917446000,-231.41,0.000386,2]
[423193577,1779917446000,-484.76763572,0.00035428,2]
[423193576,1779917446000,-150.0,0.00031858,2]
[423193579,1779917446000,-317.55905725,0.0003855,60]
[423193578,1779917446000,-310.28230408,0.00035428,2]
[423193574,1779917446000,-152.0,0.00026733,7]
[423193533,1779917446000,-151.0,0.00038356,30]
[423193584,1779917446000,-1000.0,0.000386,14]
[423193585,1779917446000,-150.0,0.00038605,7]
[423193587,1779917446000,-150.0,0.00038627,7]
[423193586,1779917446000,-392.18441976,0.00038622,2]
[423193580,1779917446000,-150.0,0.00038556,120]
[423193559,1779917446000,-217.11801924,0.0003837,10]
[423193581,1779917446000,-350.0,0.00038568,3]
[423193553,1779917446000,-151.0,0.00038356,30]
[423193560,1779917446000,-2500.0,0.00038389,2]
[423193529,1779917446000,-151.0,0.00038356,30]
[423193528,1779917446000,-151.0,0.00038356,30]
[423193530,1779917446000,-151.0,0.00038356,30]
[423193532,1779917446000,-151.0,0.00038356,30]
[423193535,1779917446000,-151.0,0.00038356,30]
[423193539,1779917446000,-151.0,0.00038356,30]
[423193537,1779917446000,-151.0,0.00038356,30]
[423193540,1779917446000,-174.645432,0.00038356,30]
[423193538,1779917446000,-151.0,0.00038356,30]
[423193546,1779917446000,-151.0,0.00038356,30]
[423193548,1779917446000,-151.0,0.00038356,30]
[423193547,1779917446000,-151.0,0.00038356,30]
[423193527,1779917446000,-211.016959,0.00038356,30]
[423193541,1779917446000,-260.88469,0.00038356,30]
[423193549,1779917446000,-152.14509,0.00038356,30]
[423193555,1779917446000,-151.0,0.00038356,30]
[423193554,1779917446000,-151.0,0.00038356,30]
[423193558,1779917446000,-150.0,0.00038359,7]
[423193552,1779917446000,-151.0,0.00038356,30]
[423193562,1779917446000,-126.08593775,0.000384,2]
[423193551,1779917446000,-151.0,0.00038356,30]
[423193545,1779917446000,-151.0,0.00038356,30]
[423193550,1779917446000,-233.52243645,0.00038356,2]
[423193544,1779917446000,-151.0,0.00038356,30]
[423193561,1779917446000,-231.41,0.000384,2]
[423193543,1779917446000,-300.824208,0.00038356,30]
[423193542,1779917446000,-228.447021,0.00038356,30]
[423193614,1779917447000,-537.0,0.000373,30]
[423193610,1779917447000,-300.0,0.00035428,2]
[423193616,1779917447000,-5177.73915837,0.000388,30]
[423193628,1779917447000,-200.0,0.000389,14]
[423193630,1779917447000,-2000.0,0.0003896,108]
[423193632,1779917447000,-150.0,0.00038985,7]
[423193594,1779917447000,-250.0,0.000388,2]
[423193631,1779917447000,-2000.0,0.0003896,108]
[423193629,1779917447000,-1549.0,0.00038904,30]
[423193612,1779917447000,-150.0,0.0003688,2]
[423193638,1779917447000,-157.89931684,0.00039084,3]
[423193634,1779917447000,-1338.13,0.00039,14]
[423193637,1779917447000,-2110.0,0.00039059,2]
[423193635,1779917447000,-350.0,0.00039011,4]
[423193636,1779917447000,-200.0,0.00039041,20]
[423193640,1779917447000,-163.42,0.00039088,120]
[423193639,1779917447000,-161.3,0.00039087,120]
[423193642,1779917447000,-150.0,0.00039097,7]
[423193652,1779917447000,-392.18441976,0.00039166,2]
[423193653,1779917447000,-411.0,0.00039166,2]
[423193624,1779917447000,-668.65185756,0.00038876,2]
[423193633,1779917447000,-254.164165,0.00039,120]
[423193608,1779917447000,-150.0,0.00035124,2]
[423193599,1779917447000,-150.0,0.00033451,2]
[423193623,1779917447000,-150.0,0.00038851,7]
[423193596,1779917447000,-73262.70000201,0.000388,30]
[423193593,1779917447000,-250.0,0.000388,2]
[423193595,1779917447000,-250.0,0.000388,2]
[423193589,1779917447000,-163.0,0.00038691,11]
[423193592,1779917447000,-250.0,0.000388,2]
[423193590,1779917447000,-200.0,0.000387,14]
[423193588,1779917447000,-1589.0,0.00038631,11]
[423193591,1779917447000,-500.0,0.00038799,2]
[423193598,1779917447000,-302.639205,0.000388,30]
[423193597,1779917447000,-281.48915871,0.000388,30]
[423193626,1779917447000,-833.92535152,0.00038876,2]
[423193602,1779917447000,-4471.25979456,0.000388,30]
[423193601,1779917447000,-569.6015277,0.000388,30]
[423193603,1779917447000,-2589.57115365,0.000388,30]
[423193604,1779917447000,-1356.0,0.00026465,2]
[423193605,1779917447000,-1356.0,0.00029465,2]
[423193606,1779917447000,-1356.0,0.00032465,2]
[423193641,1779917447000,-350.0,0.00039094,2]
[423193607,1779917447000,-163.61,0.00033798,120]
[423193609,1779917447000,-300.0,0.00035428,2]
[423193619,1779917447000,-200.0,0.000388,14]
[423193621,1779917447000,-157.89931684,0.0003881,3]
[423193600,1779917447000,-5550.0,0.000388,30]
[423193647,1779917447000,-163.42,0.00039138,120]
[423193660,1779917447000,-1000.0,0.00039178,2]
[423193650,1779917447000,-525.0,0.00039165,2]
[423193673,1779917447000,-1000.0,0.00039178,2]
[423193674,1779917447000,-1000.0,0.00039178,2]
[423193675,1779917447000,-1000.0,0.00039178,2]
[423193677,1779917447000,-1000.0,0.00039178,2]
[423193680,1779917447000,-1000.0,0.00039178,2]
[423193683,1779917447000,-161.3,0.00039187,120]
[423193684,1779917447000,-163.42,0.00039188,120]
[423193682,1779917447000,-675.22966363,0.00039183,2]
[423193681,1779917447000,-1034.64,0.00039178,2]
[423193691,1779917447000,-163.0,0.00039256,11]
[423193692,1779917447000,-533.81330284,0.0003927,2]
[423193687,1779917447000,-250.0,0.000392,2]
[423193686,1779917447000,-250.0,0.000392,2]
[423193688,1779917447000,-161.31733882,0.00039237,120]
[423193690,1779917447000,-437.5,0.00039243,120]
[423193685,1779917447000,-250.0,0.000392,2]
[423193689,1779917447000,-163.42346776,0.00039238,120]
[423193694,1779917447000,-390.41142005,0.0003927,2]
[423193695,1779917447000,-629.95211072,0.0003927,2]
[423193693,1779917447000,-687.05630811,0.0003927,2]
[423193646,1779917447000,-161.3,0.00039137,120]
[423193671,1779917447000,-1000.0,0.00039178,2]
[423193669,1779917447000,-1000.0,0.00039178,2]
[423193676,1779917447000,-1000.0,0.00039178,2]
[423193672,1779917447000,-1000.0,0.00039178,2]
[423193643,1779917447000,-1400.0,0.00039098,60]
[423193645,1779917447000,-163.0,0.00039103,11]
[423193644,1779917447000,-231.41,0.000391,2]
[423193651,1779917447000,-1225.0,0.00039165,2]
[423193649,1779917447000,-1272.0,0.00039165,2]
[423193648,1779917447000,-549.0,0.00039163,2]
[423193654,1779917447000,-151.0,0.00039175,14]
[423193658,1779917447000,-1000.0,0.00039178,2]
[423193657,1779917447000,-1000.0,0.00039178,2]
[423193661,1779917447000,-1000.0,0.00039178,2]
[423193656,1779917447000,-608.29434,0.00039178,2]
[423193655,1779917447000,-500.0,0.00039178,2]
[423193670,1779917447000,-1000.0,0.00039178,2]
[423193659,1779917447000,-1000.0,0.00039178,2]
[423193678,1779917447000,-1000.0,0.00039178,2]
[423193668,1779917447000,-1000.0,0.00039178,2]
[423193666,1779917447000,-1000.0,0.00039178,2]
[423193679,1779917447000,-1000.0,0.00039178,2]
[423193662,1779917447000,-1000.0,0.00039178,2]
[423193663,1779917447000,-1000.0,0.00039178,2]
[423193664,1779917447000,-1000.0,0.00039178,2]
[423193665,1779917447000,-1000.0,0.00039178,2]
[423193667,1779917447000,-1000.0,0.00039178,2]
[423193700,1779917448000,-22529.27877068,0.0003929,120]
[423193702,1779917448000,-19404.06997262,0.000393,120]
[423193699,1779917448000,-13707.30926674,0.0003929,120]
[423193696,1779917448000,-2764.52302312,0.0003927,2]
[423193697,1779917448000,-22630.87504843,0.0003927,2]
[423193698,1779917448000,-427.0,0.00039281,2]
[423193701,1779917448000,-200.0,0.000393,10]
[423193704,1779917473000,-300.0,0.00026464,2]
[423193705,1779917473000,2500.0,0.00027965,120]
[423193706,1779917526000,-1191.8566457,0.0001238,2]
[423193707,1779917546000,-151.0,0.000122,2]
[423193708,1779917557000,-151.0,0.00012377,2]
[423193710,1779917599000,-300.0,0.00011644,2]